[Event "Live Chess"]
[Site "Chess.com"]
[Date "2023.05.20"]
[Round "-"]
[White "LutherSullivan"]
[Black "VovaOvchar1990"]
[Result "1-0"]
[WhiteElo "2092"]
[BlackElo "1223"]
[TimeControl "300"]
[EndTime "14:20:50 PDT"]
[Termination "LutherSullivan won by checkmate"]

1. c4 {[%clk 0:04:54.9]} 1... g5 {[%clk 0:04:57]} 2. d4 {[%clk 0:04:47.9]} 2...
f5 {[%clk 0:04:55.1]} 3. Bxg5 {[%clk 0:04:44.8]} 3... Bh6 {[%clk 0:04:51.8]} 4.
Bxh6 {[%clk 0:04:41.3]} 4... Nxh6 {[%clk 0:04:50.5]} 5. Nc3 {[%clk 0:04:35]}
5... e6 {[%clk 0:04:48.8]} 6. e4 {[%clk 0:04:31.1]} 6... fxe4 {[%clk 0:04:46.6]}
7. Qh5+ {[%clk 0:04:28.7]} 7... Nf7 {[%clk 0:04:44]} 8. Nxe4 {[%clk 0:04:28]}
8... Qe7 {[%clk 0:04:39.5]} 9. O-O-O {[%clk 0:04:21.4]} 9... b6 {[%clk
0:04:36.9]} 10. Nf3 {[%clk 0:04:18.6]} 10... Bb7 {[%clk 0:04:35.3]} 11. Neg5
{[%clk 0:04:14.1]} 11... Rf8 {[%clk 0:04:30.5]} 12. Bd3 {[%clk 0:03:54]} 12...
Bxf3 {[%clk 0:04:23.5]} 13. Nxf3 {[%clk 0:03:52]} 13... Na6 {[%clk 0:04:19]} 14.
Kb1 {[%clk 0:03:11.9]} 14... O-O-O {[%clk 0:04:12.4]} 15. Rhe1 {[%clk 0:03:08]}
15... h6 {[%clk 0:04:04.1]} 16. Qb5 {[%clk 0:03:01.7]} 16... Kb7 {[%clk
0:03:56.2]} 17. c5 {[%clk 0:02:55.5]} 17... Nb8 {[%clk 0:03:46.1]} 18. Qa4
{[%clk 0:02:36.8]} 18... Ng5 {[%clk 0:03:37.2]} 19. d5 {[%clk 0:02:24.6]} 19...
Nxf3 {[%clk 0:03:29.8]} 20. c6+ {[%clk 0:02:15]} 20... dxc6 {[%clk 0:03:17.7]}
21. dxc6+ {[%clk 0:02:13.3]} 21... Nxc6 {[%clk 0:03:11.5]} 22. Ba6+ {[%clk
0:02:05.9]} 22... Kb8 {[%clk 0:02:58.1]} 23. Qxc6 {[%clk 0:02:01]} 23... Rxd1+
{[%clk 0:01:12.5]} 24. Rxd1 {[%clk 0:01:56.4]} 24... Qh7+ {[%clk 0:00:51.8]} 25.
Ka1 {[%clk 0:01:54.8]} 25... Qe4 {[%clk 0:00:17.9]} 26. Qxe4 {[%clk 0:01:51.6]}
26... c5 {[%clk 0:00:13.9]} 27. Qb7# {[%clk 0:01:50.1]} 1-0

[Event "Live Chess"]
[Site "Chess.com"]
[Date "2023.05.20"]
[Round "-"]
[White "Delacorta"]
[Black "LL220284LL"]
[Result "0-1"]
[WhiteElo "1430"]
[BlackElo "2377"]
[TimeControl "300"]
[EndTime "14:20:50 PDT"]
[Termination "LL220284LL won by resignation"]

1. d4 {[%clk 0:04:57.1]} 1... b6 {[%clk 0:04:58.7]} 2. Nf3 {[%clk 0:04:56.2]}
2... Bb7 {[%clk 0:04:57.9]} 3. e3 {[%clk 0:04:55.6]} 3... Nf6 {[%clk 0:04:56.4]}
4. Bd3 {[%clk 0:04:54.3]} 4... g6 {[%clk 0:04:55.3]} 5. b3 {[%clk 0:04:52.5]}
5... Bg7 {[%clk 0:04:54.8]} 6. Bb2 {[%clk 0:04:51.9]} 6... O-O {[%clk
0:04:54.3]} 7. Nbd2 {[%clk 0:04:50.6]} 7... d6 {[%clk 0:04:53.1]} 8. c4 {[%clk
0:04:49.5]} 8... Nbd7 {[%clk 0:04:51]} 9. O-O {[%clk 0:04:47.7]} 9... Re8 {[%clk
0:04:50]} 10. d5 {[%clk 0:04:44.9]} 10... Nc5 {[%clk 0:04:48]} 11. Qc2 {[%clk
0:04:42.2]} 11... Nxd3 {[%clk 0:04:47]} 12. Qxd3 {[%clk 0:04:42.1]} 12... c6
{[%clk 0:04:46.3]} 13. dxc6 {[%clk 0:04:34.8]} 13... Bxc6 {[%clk 0:04:46.2]} 14.
Rad1 {[%clk 0:04:28.2]} 14... Qc8 {[%clk 0:04:44.7]} 15. Qb1 {[%clk 0:04:24.2]}
15... Qb7 {[%clk 0:04:43.4]} 16. b4 {[%clk 0:04:02]} 16... a6 {[%clk 0:04:39.7]}
17. Qa1 {[%clk 0:03:52.2]} 17... Rad8 {[%clk 0:04:36]} 18. Rfe1 {[%clk
0:03:37.8]} 18... d5 {[%clk 0:04:34.5]} 19. c5 {[%clk 0:03:28.4]} 19... bxc5
{[%clk 0:04:30.2]} 20. bxc5 {[%clk 0:03:26.7]} 20... Rb8 {[%clk 0:04:23]} 21.
Bxf6 {[%clk 0:03:24.7]} 21... Bxf6 {[%clk 0:04:21.5]} 22. Qb1 {[%clk 0:03:23.5]}
22... Qc7 {[%clk 0:04:20]} 23. Qd3 {[%clk 0:03:18.3]} 23... e5 {[%clk
0:04:18.9]} 24. e4 {[%clk 0:03:13.3]} 24... dxe4 {[%clk 0:04:15.6]} 25. Nxe4
{[%clk 0:03:12.4]} 25... Bg7 {[%clk 0:04:14.6]} 26. Qd6 {[%clk 0:02:58.9]} 26...
Qb7 {[%clk 0:04:11.4]} 27. Qd3 {[%clk 0:02:45]} 27... h6 {[%clk 0:04:07.5]} 28.
Qc2 {[%clk 0:02:29.8]} 28... Qa8 {[%clk 0:03:58.6]} 29. Qc4 {[%clk 0:02:22.1]}
29... Bb5 {[%clk 0:03:54.9]} 30. Qc2 {[%clk 0:02:11.4]} 30... Rbd8 {[%clk
0:03:54.1]} 31. Nd6 {[%clk 0:01:58.1]} 31... Rf8 {[%clk 0:03:52.8]} 32. Nxe5
{[%clk 0:01:49.3]} 32... Qb8 {[%clk 0:03:39.7]} 33. Ndxf7 {[%clk 0:01:43.5]}
33... Rxd1 {[%clk 0:03:35.3]} 34. Qxd1 {[%clk 0:01:35.2]} 34... Rxf7 {[%clk
0:03:29.5]} 35. Nxf7 {[%clk 0:01:32.7]} 35... Kxf7 {[%clk 0:03:28.5]} 36. Qd5+
{[%clk 0:01:30]} 36... Kf8 {[%clk 0:03:26.5]} 37. Qf3+ {[%clk 0:01:07]} 37...
Kg8 {[%clk 0:03:23.6]} 38. c6 {[%clk 0:00:56.2]} 38... Qc7 {[%clk 0:03:19.1]}
39. Qb3+ {[%clk 0:00:43.1]} 39... Kh7 {[%clk 0:03:17.4]} 40. Rc1 {[%clk
0:00:24.7]} 40... Be5 {[%clk 0:03:12]} 41. Qd3 {[%clk 0:00:13.5]} 41... Bxd3
{[%clk 0:03:09.3]} 0-1

[Event "Live Chess"]
[Site "Chess.com"]
[Date "2023.05.20"]
[Round "-"]
[White "diana21strabt"]
[Black "scarletmojito"]
[Result "0-1"]
[WhiteElo "1696"]
[BlackElo "1866"]
[TimeControl "300"]
[EndTime "14:20:51 PDT"]
[Termination "scarletmojito won by resignation"]

1. e4 {[%clk 0:04:55.6]} 1... c5 {[%clk 0:04:58.5]} 2. Nf3 {[%clk 0:04:54.4]}
2... e6 {[%clk 0:04:56]} 3. d3 {[%clk 0:04:51.5]} 3... Nc6 {[%clk 0:04:52.9]} 4.
g3 {[%clk 0:04:49.5]} 4... d6 {[%clk 0:04:51.6]} 5. Bg2 {[%clk 0:04:47.1]} 5...
Qc7 {[%clk 0:04:50.6]} 6. O-O {[%clk 0:04:45.4]} 6... Nf6 {[%clk 0:04:49.2]} 7.
c3 {[%clk 0:04:43.5]} 7... Be7 {[%clk 0:04:48.1]} 8. Bf4 {[%clk 0:04:38.6]} 8...
O-O {[%clk 0:04:45]} 9. Nbd2 {[%clk 0:04:34]} 9... b5 {[%clk 0:04:42.6]} 10. a4
{[%clk 0:04:28.1]} 10... bxa4 {[%clk 0:04:35.2]} 11. Rxa4 {[%clk 0:04:24.8]}
11... Bb7 {[%clk 0:04:34.5]} 12. Nc4 {[%clk 0:04:20.1]} 12... Nh5 {[%clk
0:04:27.2]} 13. Be3 {[%clk 0:04:17.3]} 13... d5 {[%clk 0:04:20.2]} 14. exd5
{[%clk 0:04:15.8]} 14... exd5 {[%clk 0:04:20.1]} 15. Ncd2 {[%clk 0:04:11.2]}
15... Bd6 {[%clk 0:04:08.7]} 16. Ng5 {[%clk 0:04:05.4]} 16... Nf6 {[%clk
0:03:59.2]} 17. Rh4 {[%clk 0:04:03.2]} 17... h6 {[%clk 0:03:47.3]} 18. Nh3
{[%clk 0:03:57]} 18... Rfe8 {[%clk 0:03:35.7]} 19. Bxh6 {[%clk 0:03:46.1]} 19...
gxh6 {[%clk 0:03:34.8]} 20. Rxh6 {[%clk 0:03:45.1]} 20... Kg7 {[%clk 0:03:31.1]}
21. Rxf6 {[%clk 0:03:24.5]} 21... Kxf6 {[%clk 0:03:24.1]} 22. Qf3+ {[%clk
0:03:23.2]} 22... Ke7 {[%clk 0:03:13.4]} 23. Ng5 {[%clk 0:03:18.6]} 23... Ne5
{[%clk 0:03:05.7]} 24. Qf5 {[%clk 0:03:11.3]} 24... Qd7 {[%clk 0:02:46.5]} 25.
Qh7 {[%clk 0:03:01.2]} 25... Rh8 {[%clk 0:02:42.5]} 26. Qg7 {[%clk 0:02:47.5]}
26... Rag8 {[%clk 0:02:41.1]} 27. Bh3 {[%clk 0:02:22.9]} 27... Qb5 {[%clk
0:02:26.4]} 28. c4 {[%clk 0:02:11.8]} 28... Qxb2 {[%clk 0:02:23.2]} 29. f4
{[%clk 0:01:51.9]} 29... Qd4+ {[%clk 0:02:18.3]} 30. Kg2 {[%clk 0:01:48.7]}
30... Rxg7 {[%clk 0:02:17.2]} 31. Nb3 {[%clk 0:01:42.4]} 31... Qb2+ {[%clk
0:02:14.5]} 32. Rf2 {[%clk 0:01:40.2]} 32... Qxb3 {[%clk 0:02:13.6]} 33. fxe5
{[%clk 0:01:39.2]} 33... Bxe5 {[%clk 0:02:13.5]} 34. Nf3 {[%clk 0:01:36.6]}
34... Bd4 {[%clk 0:02:07.3]} 35. Re2+ {[%clk 0:01:35.3]} 35... Kd6 {[%clk
0:02:03.8]} 0-1

[Event "Live Chess"]
[Site "Chess.com"]
[Date "2023.05.20"]
[Round "-"]
[White "Oleg_Silin"]
[Black "therealab0ne"]
[Result "1-0"]
[WhiteElo "1464"]
[BlackElo "702"]
[TimeControl "300"]
[EndTime "14:21:00 PDT"]
[Termination "Oleg_Silin won by resignation"]

1. c4 {[%clk 0:04:56.9]} 1... e5 {[%clk 0:04:58]} 2. Nc3 {[%clk 0:04:53.7]} 2...
Nc6 {[%clk 0:04:41.6]} 3. Nf3 {[%clk 0:04:52.6]} 3... Nge7 {[%clk 0:04:35.1]} 4.
d4 {[%clk 0:04:44.8]} 4... exd4 {[%clk 0:04:32.5]} 5. Nxd4 {[%clk 0:04:44.7]}
5... g6 {[%clk 0:04:31.1]} 6. g3 {[%clk 0:04:27.6]} 6... Bg7 {[%clk 0:04:29.7]}
7. Nf3 {[%clk 0:04:24.7]} 7... O-O {[%clk 0:04:21]} 8. Bg2 {[%clk 0:04:24.1]}
8... b6 {[%clk 0:03:58.2]} 9. O-O {[%clk 0:04:22.4]} 9... a5 {[%clk 0:03:57.2]}
10. Bg5 {[%clk 0:04:15.2]} 10... Ba6 {[%clk 0:03:47.6]} 11. Nd2 {[%clk
0:04:01.9]} 11... Nd4 {[%clk 0:02:46.3]} 12. Bxa8 {[%clk 0:03:54.4]} 12... Qxa8
{[%clk 0:02:45.2]} 13. Bxe7 {[%clk 0:03:52.5]} 13... Qc6 {[%clk 0:02:29.8]} 14.
Bxf8 {[%clk 0:03:44.1]} 14... Bb7 {[%clk 0:02:28.6]} 15. e4 {[%clk 0:03:42.7]}
15... Bxf8 {[%clk 0:02:22.6]} 16. Nf3 {[%clk 0:03:28.9]} 16... Nxf3+ {[%clk
0:02:11.8]} 17. Qxf3 {[%clk 0:03:27.8]} 17... Qxc4 {[%clk 0:02:04.7]} 18. Nd5
{[%clk 0:03:18.7]} 18... Bg7 {[%clk 0:01:33.6]} 19. Rfc1 {[%clk 0:03:09.3]}
19... Qd4 {[%clk 0:01:02.8]} 20. Rxc7 {[%clk 0:02:53.9]} 20... Bxd5 {[%clk
0:00:58.2]} 21. exd5 {[%clk 0:02:44.5]} 21... Qxb2 {[%clk 0:00:34.4]} 22. Re1
{[%clk 0:02:33.7]} 22... Be5 {[%clk 0:00:20.8]} 23. Rxd7 {[%clk 0:02:25.4]}
23... Qxa2 {[%clk 0:00:07.3]} 24. Qxf7+ {[%clk 0:02:22]} 1-0

[Event "Live Chess"]
[Site "Chess.com"]
[Date "2023.05.20"]
[Round "-"]
[White "ExIsambard"]
[Black "YrrriKharkiv"]
[Result "0-1"]
[WhiteElo "1970"]
[BlackElo "2082"]
[TimeControl "300"]
[EndTime "14:21:09 PDT"]
[Termination "YrrriKharkiv won on time"]

1. d4 {[%clk 0:04:57.2]} 1... Nf6 {[%clk 0:04:57.4]} 2. Nf3 {[%clk 0:04:56.3]}
2... c5 {[%clk 0:04:56.1]} 3. Bg5 {[%clk 0:04:55.6]} 3... cxd4 {[%clk
0:04:53.1]} 4. Qxd4 {[%clk 0:04:55.2]} 4... Nc6 {[%clk 0:04:52.2]} 5. Qa4 {[%clk
0:04:54.1]} 5... d6 {[%clk 0:04:50.9]} 6. c3 {[%clk 0:04:52.9]} 6... Bd7 {[%clk
0:04:50]} 7. e3 {[%clk 0:04:51.7]} 7... Nd5 {[%clk 0:04:44.8]} 8. Qd1 {[%clk
0:04:45.2]} 8... Nc7 {[%clk 0:04:42.3]} 9. Bd3 {[%clk 0:04:43.7]} 9... f6 {[%clk
0:04:41.6]} 10. Bh4 {[%clk 0:04:42.1]} 10... d5 {[%clk 0:04:40]} 11. Nbd2 {[%clk
0:04:40.4]} 11... e5 {[%clk 0:04:38.9]} 12. e4 {[%clk 0:04:31]} 12... Be6 {[%clk
0:04:36.7]} 13. O-O {[%clk 0:04:28.7]} 13... Be7 {[%clk 0:04:32]} 14. Qc2 {[%clk
0:04:27.1]} 14... Qd7 {[%clk 0:04:26.3]} 15. Rfd1 {[%clk 0:04:24.6]} 15... d4
{[%clk 0:04:18.9]} 16. Nb3 {[%clk 0:04:13.5]} 16... Rc8 {[%clk 0:04:05.8]} 17.
Qe2 {[%clk 0:04:11.9]} 17... Bxb3 {[%clk 0:03:59.4]} 18. axb3 {[%clk 0:04:10.1]}
18... O-O {[%clk 0:03:52.9]} 19. Bc4+ {[%clk 0:03:54.3]} 19... Kh8 {[%clk
0:03:50.5]} 20. cxd4 {[%clk 0:03:53]} 20... exd4 {[%clk 0:03:49.4]} 21. Qd2
{[%clk 0:03:04]} 21... Bc5 {[%clk 0:03:46.3]} 22. e5 {[%clk 0:02:55.6]} 22...
Nxe5 {[%clk 0:03:37.4]} 23. Nxe5 {[%clk 0:02:51.7]} 23... fxe5 {[%clk 0:03:36]}
24. b4 {[%clk 0:02:44.2]} 24... Bb6 {[%clk 0:03:26.4]} 25. Bd3 {[%clk 0:02:38]}
25... Ne6 {[%clk 0:03:10.9]} 26. Bg3 {[%clk 0:02:32.6]} 26... Nf4 {[%clk
0:03:07]} 27. Bxf4 {[%clk 0:02:17.6]} 27... exf4 {[%clk 0:02:57.3]} 28. Qe2
{[%clk 0:02:15.8]} 28... f3 {[%clk 0:02:51.7]} 29. gxf3 {[%clk 0:02:12.1]} 29...
Rf4 {[%clk 0:02:41.2]} 30. Kh1 {[%clk 0:02:08.2]} 30... Rcf8 {[%clk 0:02:39.8]}
31. Be4 {[%clk 0:02:06]} 31... Qe7 {[%clk 0:02:27]} 32. Rg1 {[%clk 0:01:45.6]}
32... Qxb4 {[%clk 0:02:02.4]} 33. Rg3 {[%clk 0:01:30.6]} 33... Qe7 {[%clk
0:01:48.7]} 34. Rag1 {[%clk 0:01:26.6]} 34... g6 {[%clk 0:01:43]} 35. Rh3 {[%clk
0:01:25.1]} 35... Rh4 {[%clk 0:01:22.6]} 36. Rgg3 {[%clk 0:01:08.7]} 36... Bc7
{[%clk 0:01:18]} 37. Rxh4 {[%clk 0:01:05]} 37... Qxh4 {[%clk 0:01:16.5]} 38. Rg2
{[%clk 0:00:58.9]} 38... Qf4 {[%clk 0:01:08.5]} 39. Qd3 {[%clk 0:00:52.5]} 39...
Be5 {[%clk 0:01:06]} 40. Qc4 {[%clk 0:00:41.8]} 40... b6 {[%clk 0:00:58.3]} 41.
Qe6 {[%clk 0:00:37.3]} 41... Qf6 {[%clk 0:00:56.1]} 42. Qh3 {[%clk 0:00:34.2]}
42... Kg7 {[%clk 0:00:44.9]} 43. Qd7+ {[%clk 0:00:31.7]} 43... Rf7 {[%clk
0:00:43.7]} 44. Qe8 {[%clk 0:00:27.6]} 44... d3 {[%clk 0:00:39.5]} 45. Qa4
{[%clk 0:00:18.7]} 45... d2 {[%clk 0:00:37.3]} 46. Qd1 {[%clk 0:00:17.9]} 46...
Rd7 {[%clk 0:00:35.5]} 47. Rg4 {[%clk 0:00:10.7]} 47... Bxb2 {[%clk 0:00:33.3]}
48. h4 {[%clk 0:00:09.4]} 48... Be5 {[%clk 0:00:29.4]} 49. h5 {[%clk 0:00:08.5]}
49... g5 {[%clk 0:00:28.8]} 50. Bc2 {[%clk 0:00:02.5]} 50... Bf4 {[%clk
0:00:25.5]} 51. Qe2 {[%clk 0:00:01.5]} 51... Re7 {[%clk 0:00:24.5]} 0-1

[Event "Live Chess"]
[Site "Chess.com"]
[Date "2023.05.20"]
[Round "-"]
[White "gregor1903"]
[Black "ramses-IIG"]
[Result "1-0"]
[WhiteElo "1567"]
[BlackElo "822"]
[TimeControl "300"]
[EndTime "14:21:10 PDT"]
[Termination "gregor1903 won by resignation"]

1. e4 {[%clk 0:04:56.6]} 1... d5 {[%clk 0:04:59.9]} 2. exd5 {[%clk 0:04:55.1]}
2... Qxd5 {[%clk 0:04:59.8]} 3. Nc3 {[%clk 0:04:53.4]} 3... Qe6+ {[%clk
0:04:59.7]} 4. Be2 {[%clk 0:04:50.4]} 4... Qg6 {[%clk 0:04:59.6]} 5. Bf3 {[%clk
0:04:44.4]} 5... c6 {[%clk 0:04:58.2]} 6. Nge2 {[%clk 0:04:38.1]} 6... e5 {[%clk
0:04:58.1]} 7. d3 {[%clk 0:04:35.1]} 7... f6 {[%clk 0:04:56.7]} 8. Be3 {[%clk
0:04:22.7]} 8... Bb4 {[%clk 0:04:56.6]} 9. a3 {[%clk 0:04:18.7]} 9... Ba5 {[%clk
0:04:53.5]} 10. Ng3 {[%clk 0:03:53.4]} 10... Ne7 {[%clk 0:04:50.4]} 11. b4
{[%clk 0:03:46.9]} 11... Bc7 {[%clk 0:04:46.9]} 12. O-O {[%clk 0:03:43.2]} 12...
h5 {[%clk 0:04:43.6]} 13. Nxh5 {[%clk 0:03:14.6]} 13... Rxh5 {[%clk 0:04:41.5]}
14. Bxh5 {[%clk 0:03:12.9]} 14... Qxh5 {[%clk 0:04:41.4]} 15. Qxh5+ {[%clk
0:03:11]} 1-0

[Event "Live Chess"]
[Site "Chess.com"]
[Date "2023.05.20"]
[Round "-"]
[White "PaulHumphreys"]
[Black "elvenstar"]
[Result "1-0"]
[WhiteElo "1369"]
[BlackElo "1567"]
[TimeControl "300"]
[EndTime "14:21:13 PDT"]
[Termination "PaulHumphreys won on time"]

1. d4 {[%clk 0:04:58.4]} 1... Nf6 {[%clk 0:04:57.9]} 2. Nc3 {[%clk 0:04:57.3]}
2... d5 {[%clk 0:04:55.3]} 3. Bf4 {[%clk 0:04:54.3]} 3... c6 {[%clk 0:04:53.2]}
4. e3 {[%clk 0:04:52.4]} 4... Bf5 {[%clk 0:04:51]} 5. Be2 {[%clk 0:04:35.7]}
5... Nbd7 {[%clk 0:04:33.3]} 6. g4 {[%clk 0:04:33.2]} 6... Bg6 {[%clk
0:04:23.9]} 7. h4 {[%clk 0:04:32.3]} 7... h5 {[%clk 0:04:12.9]} 8. g5 {[%clk
0:04:31]} 8... Ne4 {[%clk 0:04:09.2]} 9. Bd3 {[%clk 0:04:21.4]} 9... Qb6 {[%clk
0:03:54.9]} 10. Rb1 {[%clk 0:04:09.7]} 10... e6 {[%clk 0:03:46.4]} 11. a3 {[%clk
0:04:03.2]} 11... Be7 {[%clk 0:03:35.3]} 12. f3 {[%clk 0:03:57.9]} 12... Nd6
{[%clk 0:03:12.7]} 13. Bxg6 {[%clk 0:03:53.4]} 13... fxg6 {[%clk 0:03:10.6]} 14.
Qd3 {[%clk 0:03:52.8]} 14... Nf5 {[%clk 0:02:44.4]} 15. Na4 {[%clk 0:03:31.5]}
15... Qa5+ {[%clk 0:02:28.1]} 16. Nc3 {[%clk 0:03:28]} 16... Nb6 {[%clk
0:02:18.5]} 17. e4 {[%clk 0:03:25.6]} 17... Nd6 {[%clk 0:01:35.6]} 18. Bxd6
{[%clk 0:03:22.3]} 18... Bxd6 {[%clk 0:01:27.9]} 19. e5 {[%clk 0:03:21.5]} 19...
Be7 {[%clk 0:01:13.5]} 20. Qxg6+ {[%clk 0:03:19.3]} 20... Kd7 {[%clk 0:01:12.3]}
21. Ne2 {[%clk 0:02:49]} 21... Nc4 {[%clk 0:01:07.7]} 22. Kf2 {[%clk 0:02:38.4]}
22... Qb6 {[%clk 0:00:55.5]} 23. Nf4 {[%clk 0:02:28.1]} 23... Qxd4+ {[%clk
0:00:40.8]} 24. Kg3 {[%clk 0:02:26.6]} 24... Qxe5 {[%clk 0:00:29.3]} 25. Rhe1
{[%clk 0:02:04.1]} 25... Ne3 {[%clk 0:00:25.3]} 26. Kf2 {[%clk 0:01:48.2]} 26...
Qxf4 {[%clk 0:00:16.5]} 27. Rxe3 {[%clk 0:01:43.8]} 27... Bc5 {[%clk 0:00:11.6]}
28. Qxe6+ {[%clk 0:01:40.6]} 28... Kc7 {[%clk 0:00:09.1]} 29. Re1 {[%clk
0:01:14.8]} 29... Bxe3+ {[%clk 0:00:06.7]} 30. Rxe3 {[%clk 0:01:12.6]} 30...
Qxh4+ {[%clk 0:00:02.9]} 31. Ke2 {[%clk 0:01:09.3]} 31... Rhe8 {[%clk
0:00:00.2]} 32. Qf7+ {[%clk 0:01:00.2]} 1-0

[Event "Live Chess"]
[Site "Chess.com"]
[Date "2023.05.20"]
[Round "-"]
[White "omisoc"]
[Black "siddu198"]
[Result "1-0"]
[WhiteElo "2141"]
[BlackElo "1622"]
[TimeControl "300"]
[EndTime "14:21:20 PDT"]
[Termination "omisoc won by resignation"]

1. Nf3 {[%clk 0:04:54]} 1... d5 {[%clk 0:04:59]} 2. g3 {[%clk 0:04:52.3]} 2...
Bf5 {[%clk 0:04:58.2]} 3. d3 {[%clk 0:04:49.9]} 3... Nf6 {[%clk 0:04:57.4]} 4.
Bg2 {[%clk 0:04:48.8]} 4... Nc6 {[%clk 0:04:55.1]} 5. O-O {[%clk 0:04:46.5]}
5... e5 {[%clk 0:04:54.6]} 6. c3 {[%clk 0:04:43.1]} 6... Bd6 {[%clk 0:04:53.9]}
7. b4 {[%clk 0:04:40.8]} 7... h6 {[%clk 0:04:52.4]} 8. Bb2 {[%clk 0:04:38.8]}
8... a6 {[%clk 0:04:47.8]} 9. a4 {[%clk 0:04:35.5]} 9... Ne7 {[%clk 0:04:46.6]}
10. Nbd2 {[%clk 0:04:31.3]} 10... Ng6 {[%clk 0:04:46.1]} 11. b5 {[%clk
0:04:22.1]} 11... axb5 {[%clk 0:04:44.4]} 12. axb5 {[%clk 0:04:20.2]} 12... Rxa1
{[%clk 0:04:44.3]} 13. Qxa1 {[%clk 0:04:18.6]} 13... O-O {[%clk 0:04:43]} 14. c4
{[%clk 0:04:16.2]} 14... c6 {[%clk 0:04:35.7]} 15. Nxe5 {[%clk 0:04:12.7]} 15...
Bxe5 {[%clk 0:04:31.4]} 16. Bxe5 {[%clk 0:04:11.1]} 16... Nxe5 {[%clk
0:04:31.3]} 17. Qxe5 {[%clk 0:04:09.3]} 17... Bg6 {[%clk 0:04:27.4]} 18. bxc6
{[%clk 0:04:04.5]} 18... bxc6 {[%clk 0:04:25.5]} 19. cxd5 {[%clk 0:04:01.8]}
19... cxd5 {[%clk 0:04:23.3]} 20. Nf3 {[%clk 0:03:48.4]} 20... Re8 {[%clk
0:04:20.8]} 21. Qb2 {[%clk 0:03:47.3]} 21... Qe7 {[%clk 0:04:11.7]} 22. Nd4
{[%clk 0:03:44.7]} 22... Qe5 {[%clk 0:04:05.5]} 23. Rb1 {[%clk 0:03:33.9]} 23...
Ng4 {[%clk 0:04:00.2]} 24. Bf3 {[%clk 0:03:29.4]} 24... Nf6 {[%clk 0:03:54.1]}
25. Nc6 {[%clk 0:03:21.3]} 25... Qxb2 {[%clk 0:03:34.2]} 26. Rxb2 {[%clk
0:03:19.7]} 26... Re6 {[%clk 0:03:26.4]} 27. Rc2 {[%clk 0:03:04.2]} 27... Nd7
{[%clk 0:03:04.4]} 28. Kf1 {[%clk 0:02:57.9]} 28... Rd6 {[%clk 0:02:55.5]} 29.
Bxd5 {[%clk 0:02:49.1]} 29... Ne5 {[%clk 0:02:47.6]} 30. Nxe5 {[%clk 0:02:44.3]}
30... Rxd5 {[%clk 0:02:45.3]} 31. Nxg6 {[%clk 0:02:41.2]} 31... fxg6 {[%clk
0:02:43.8]} 32. Rc7 {[%clk 0:02:26.3]} 32... h5 {[%clk 0:02:39.7]} 33. f4 {[%clk
0:02:20.2]} 33... g5 {[%clk 0:02:23.4]} 34. fxg5 {[%clk 0:02:15.7]} 34... Rxg5
{[%clk 0:02:22.6]} 35. e4 {[%clk 0:02:11.1]} 35... h4 {[%clk 0:02:20.7]} 36. Kf2
{[%clk 0:02:09.1]} 36... hxg3+ {[%clk 0:02:18]} 37. hxg3 {[%clk 0:02:09]} 37...
Ra5 {[%clk 0:02:16.9]} 38. Rc2 {[%clk 0:02:07]} 38... Ra7 {[%clk 0:02:15.2]} 39.
Ke3 {[%clk 0:02:04.5]} 39... Kf7 {[%clk 0:02:13.6]} 40. Rc6 {[%clk 0:02:01.6]}
40... Rd7 {[%clk 0:02:09.5]} 41. e5 {[%clk 0:02:00.1]} 41... Re7 {[%clk
0:02:07]} 42. Ke4 {[%clk 0:01:59.1]} 42... g6 {[%clk 0:01:57.6]} 43. Rf6+ {[%clk
0:01:56]} 43... Kg7 {[%clk 0:01:56.9]} 44. d4 {[%clk 0:01:53.6]} 44... Kh6
{[%clk 0:01:56.4]} 45. d5 {[%clk 0:01:48.9]} 45... Kg5 {[%clk 0:01:54.5]} 46. d6
{[%clk 0:01:48.2]} 46... Rb7 {[%clk 0:01:52.7]} 47. Rf8 {[%clk 0:01:45.8]} 47...
Rb4+ {[%clk 0:01:51.9]} 48. Kd5 {[%clk 0:01:43.8]} 48... Rb1 {[%clk 0:01:50.8]}
49. d7 {[%clk 0:01:42]} 49... Rd1+ {[%clk 0:01:49.1]} 50. Ke6 {[%clk 0:01:41]}
50... Kg4 {[%clk 0:01:46.6]} 51. d8=Q {[%clk 0:01:39.2]} 51... Rxd8 {[%clk
0:01:44.6]} 52. Rxd8 {[%clk 0:01:39.1]} 1-0